Cogmind - Beta 11 @@@ ROGUE MODE // 2022.03.20 @ 23:32:42 Player: Red Box Result: Self-destructed Performance ------------- Evolutions (2) 1000 Regions Visited (5) 1000 Robots Destroyed (17) 85 Value Destroyed (373) 373 Prototype IDs (28) 560 Alien Tech Used (0) 0 Bonus (158) 158 TOTAL SCORE: 3176 Bonus ------- Follower Combat Kills 7 Aligned with FarCom 300 Friendly Fire -149 Cogmind --------- Core Integrity 550/550 Matter 267/300 Energy 265/265 System Corruption 0% Temperature Warm (135) Movement Rolling (101) Ox1 Location -8/Materials Parts ------- > --- POWER (1) -------- Improved Ion Engine > --- PROPULSION (3) --- Wheel Wheel Compact Wheel > --- UTILITY (4) ------ Improved Heat Sink Large Storage Unit Targeting Computer Light Armor Plating > --- WEAPON (3) ------- Beam Cannon Beam Cannon Rocket Launcher > --- INVENTORY (15) --- High-capacity Storage Unit High-capacity Battery (250) Large Matter Pod (150) Utility Shielding Shield Generator Shock Rifle Shock Rifle Beam Rifle Beam Rifle Heavy Particle Cannon AWS/Gauss Mining Laser Peak State ------------ > --- POWER ------------ Improved Ion Engine > --- PROPULSION ------- Wheel Wheel Compact Wheel > --- UTILITY ---------- Improved Heat Sink Large Storage Unit Targeting Computer Light Armor Plating > --- WEAPON ----------- Beam Rifle Beam Rifle Mining Laser > --- INVENTORY -------- High-capacity Storage Unit High-capacity Battery Large Matter Pod Utility Shielding Shield Generator Shock Rifle Shock Rifle Beam Cannon Beam Cannon AWS/Gauss Rocket Launcher [Rating: 19] Favorites ----------- Power Ion Engine Engine Ion Engine Propulsion Wheel Leg Aluminum Leg Wheel Wheel Utility Light Armor Plating Device Improved Heat Sink Storage Medium Storage Unit Processor Targeting Computer Protection Light Armor Plating Weapon Assault Rifle Energy Gun Beam Rifle Energy Cannon Beam Cannon Ballistic Gun Assault Rifle Launcher Rocket Launcher Special Weapon Mining Laser Build | -11 -10 -10 -10 -9 -8 ------- Run | Scr Mat Min Exi Min Mat Slots Evolved 4 | . . . . . 4 Power . | . . . . . . Propulsion 1 | . . . . . 1 Utility 2 | . . . . . 2 Weapon 1 | . . . . . 1 Parts Attached 28 | 6 6 3 1 3 9 Power 2 | 1 . 1 . . . Engine 2 | 1 . 1 . . . Core . | . . . . . . Reactor . | . . . . . . Propulsion 5 | 2 2 . . . 1 Treads . | . . . . . . Leg 2 | 2 . . . . . Wheel 3 | . 2 . . . 1 Hover . | . . . . . . Flight . | . . . . . . Utility 7 | 1 2 . 1 1 2 Device 1 | . . . . . 1 Storage 4 | 1 1 . 1 1 . Processor 1 | . . . . . 1 Hackware . | . . . . . . Protection 1 | . 1 . . . . Artifact . | . . . . . . Weapon 14 | 2 2 2 . 2 6 Energy Gun 3 | . . 2 . 1 . Energy Cannon 4 | . . . . . 4 Ballistic Gun 4 | 2 2 . . . . Ballistic Cannon . | . . . . . . Launcher 2 | . . . . 1 1 Special Weapon 1 | . . . . . 1 Impact Weapon . | . . . . . . Slashing Weapon . | . . . . . . Piercing Weapon . | . . . . . . Special Melee Weapon . | . . . . . . Unidentified Prototypes . | . . . . . . Parts Lost . | . . . . . . Power . | . . . . . . Propulsion . | . . . . . . Utility . | . . . . . . Weapon . | . . . . . . Highest Loss Streak . | . . . . . . To Critical Strikes . | . . . . . . Average Slot Usage (%) 98 | . 95 99 100 100 100 Engine 13 | . 14 14 14 14 9 Leg 3 | . 12 . . . . Wheel 24 | . 15 28 28 28 27 Storage 13 | . 14 14 14 14 9 Protection 12 | . 10 14 14 14 9 Energy Gun 12 | . . 4 28 27 12 Ballistic Gun 14 | . 27 22 . . . Naked Turns . | . . . . . . Heaviest Build 56 | 13 22 26 56 56 43 Greatest Support 36 | 20 20 20 20 20 36 Greatest Overweight (x) 4 | 4 1 1 2 2 1 Average Overweight (x) 1 | 1 . . 1 1 1 Largest Inventory Capacity 20 | 8 10 10 20 20 15 Average Capacity 12 | 7 8 10 16 19 15 Most Carried 14 | 5 10 10 13 14 13 Average Carried 10 | 2 8 9 11 13 11 Final Capacity 20 | 8 10 10 20 15 15 Final Carried 14 | 5 10 10 13 14 13 Class Distribution -------------------- 94% | Mutant Dominant Class ---------------- Mutant | -10/Materials Mutant | -10/Mines Mutant | -10/Exiles Mutant | -9/Mines Skirmisher | -8/Materials Resources | -11 -10 -10 -10 -9 -8 ----------- Run | Scr Mat Min Exi Min Mat Matter Collected 778 | 217 184 225 . 27 125 Remotely . | . . . . . . Salvage Created 431 | . 97 75 . 13 246 Parts 34 | . 8 10 . 4 12 Haulers Intercepted 1 | . 1 . . . . Recyclers Shooed 1 | . . . . . 1 Parts Field Recycled . | . . . . . . Retrieved Matter . | . . . . . . Parts Self-Destructed . | . . . . . . Prevented . | . . . . . . Kills | -11 -10 -10 -10 -9 -8 ------- Run | Scr Mat Min Exi Min Mat Combat Hostiles Destroyed 13 | . 1 5 . 3 4 Guns 7 | . 1 5 . 1 . Cannons 1 | . . . . . 1 AOE 5 | . . . . 2 3 Classes Destroyed 6 | . 2 1 . . 3 Builder 1 | . . . . . 1 Hauler 1 | . 1 . . . . Recycler 1 | . . . . . 1 Swarmer 8 | . . 5 . 3 . Grunt 5 | . 1 . . . 4 Hunter 1 | . . . . . 1 Best Kill Streak 6 | . 1 3 . 3 6 Combat Bots Only 4 | . 1 3 . 3 4 Max Kills in Single Turn 4 | . 1 2 . 2 4 Gunslinging 1 | . . 1 . . . Exploded 2 | . . . . 1 2 Melee . | . . . . . . Uniques/NPCs Destroyed . | . . . . . . Combat | -11 -10 -10 -10 -9 -8 -------- Run | Scr Mat Min Exi Min Mat Damage Taken 246 | . 42 105 . 41 58 Core 45 | . 11 34 . . . Absorbed by Shields . | . . . . . . Core Remaining (%) 91 | 100 . . . 82 . Volleys Fired 31 | . 11 10 . 2 8 Largest 3 | . 2 2 . 2 3 Hottest 195 | . 40 40 . 89 195 Shots Fired 64 | . 22 20 . 4 18 Gun 44 | . 22 20 . 2 . Cannon 12 | . . . . . 12 Launcher 5 | . . . . 2 3 Special 3 | . . . . . 3 Kinetic 42 | . 22 20 . . . Thermal 17 | . . . . 2 15 Explosive 5 | . . . . 2 3 Electromagnetic . | . . . . . . Robot Hit Streak 5 | . 5 5 . 3 5 Robot Miss Streak 4 | . 1 4 . . 4 Penetration Max . | . . . . . . Secondary Targets 2 | . . 2 . . . Max Gunslinging Chain 1 | . . 1 . . . Shots Hit Robots 33 | . 15 9 . 3 6 Core Hits 20 | . 5 5 . 1 9 Critical Kills . | . . . . . . Critical Parts Destroyed . | . . . . . . Critical Strikes . | . . . . . . Melee Attacks . | . . . . . . Impact . | . . . . . . Slashing . | . . . . . . Piercing . | . . . . . . Sneak Attacks . | . . . . . . Combat Hostiles . | . . . . . . Follow-up Attacks . | . . . . . . Damage Inflicted 1210 | . 195 112 . 221 682 Guns 336 | . 195 112 . 29 . Cannons 140 | . . . . . 140 Explosions 734 | . . . . 192 542 Melee . | . . . . . . Ramming . | . . . . . . Kinetic 307 | . 195 112 . . . Thermal 514 | . . . . 118 396 Explosive 389 | . . . . 103 286 Electromagnetic . | . . . . . . Impact . | . . . . . . Slashing . | . . . . . . Piercing . | . . . . . . Highest Corruption . | . . . . . . Average Corruption . | . . . . . . Corruption Purged . | . . . . . . Corruption Blocked . | . . . . . . Overload Shots . | . . . . . . Overflow Damage 176 | . . . . 52 124 Projectiles . | . . . . . . Explosions 176 | . . . . 52 124 Melee . | . . . . . . Knockbacks . | . . . . . . Impact . | . . . . . . Kinetic . | . . . . . . Secondary . | . . . . . . Self-Inflicted Damage . | . . . . . . Shots . | . . . . . . Rammed . | . . . . . . Targets Rammed . | . . . . . . Kicked . | . . . . . . Crushed . | . . . . . . Highest Temperature 171 | . . . . 78 171 Average Temperature 61 | . . . . 42 71 Received Heat Transfer 69 | . 24 . . 9 36 Siege Activations . | . . . . . . Robots Corrupted . | . . . . . . Combat Hostiles . | . . . . . . Parts Fried . | . . . . . . Impact Corruptions . | . . . . . . Robots Melted . | . . . . . . Combat Hostiles . | . . . . . . Parts Melted 1 | . . . . 1 . Heat Transferred 720 | . . . . 224 496 Parts Sabotaged . | . . . . . . Parts Stolen . | . . . . . . Parts Stripped . | . . . . . . Power Chain Reactions . | . . . . . . Missiles Intercepted . | . . . . . . Alert | -11 -10 -10 -10 -9 -8 ------- Run | Scr Mat Min Exi Min Mat Peak Influence 246 | . 75 112 . 163 246 Initial 55 | . . 27 . . 55 Average 42 | . 28 44 . 63 68 Maximum Alert Level 1 | . . . . . 1 Low Security (%) 99 | 100 100 100 . 100 98 Level 1 . | . . . . . 1 Level 2 . | . . . . . . Level 3 . | . . . . . . Level 4 . | . . . . . . Level 5 . | . . . . . . High Security . | . . . . . . Max Security . | . . . . . . Squads Dispatched 4 | . 3 . . . 1 Investigation 2 | . 2 . . . . Extermination . | . . . . . . Reinforcement 2 | . 1 . . . 1 Assault . | . . . . . . Garrison . | . . . . . . Intercept . | . . . . . . Searches Triggered . | . . . . . . Construction Impeded . | . . . . . . Haulers Reinforced . | . . . . . . Active Scanning Responses . | . . . . . . Cargo Convoy Interrupts . | . . . . . . Stealth | -11 -10 -10 -10 -9 -8 --------- Run | Scr Mat Min Exi Min Mat Distress Signals 2 | . 1 . . . 1 Communications Jammed . | . . . . . . Distress Signals . | . . . . . . Times Spotted 23 | . 5 6 . 6 6 Peak Tracking Total 6 | . 3 3 . 3 6 Tactical Retreats 2 | . 1 . . . 1 Traps | -11 -10 -10 -10 -9 -8 ------- Run | Scr Mat Min Exi Min Mat Traps Triggered 1 | . 1 . . . . Indirectly . | . . . . . . Trap Hack Attempts . | . . . . . . Triggered . | . . . . . . Disarmed . | . . . . . . Reprogrammed . | . . . . . . Reused . | . . . . . . Traps Extracted . | . . . . . . Installed . | . . . . . . Triggered . | . . . . . . Machines | -11 -10 -10 -10 -9 -8 ---------- Run | Scr Mat Min Exi Min Mat Machines Disabled 5 | . . . . 4 1 Max in Single Turn 4 | . . . . 4 1 Machines Sabotaged . | . . . . . . Garrisons Compromised . | . . . . . . Overloaded Fab Kills . | . . . . . . Hacking | -11 -10 -10 -10 -9 -8 --------- Run | Scr Mat Min Exi Min Mat Machines Accessed 8 | . 5 . 2 . 1 Terminals 4 | . 3 . . . 1 Fabricators . | . . . . . . Repair Stations . | . . . . . . Recycling Units 2 | . 2 . . . . Scanalyzers . | . . . . . . Garrison Access . | . . . . . . Total Hacks 19 | . 15 . 2 . 2 Successful 13 | . 10 . 2 . 1 Failed 6 | . 5 . . . 1 Catastrophic . | . . . . . . Database Lockouts . | . . . . . . Manual 10 | . 9 . 1 . . Terminals 12 | . 10 . . . 2 Fabricators . | . . . . . . Repair Stations . | . . . . . . Recycling Units 5 | . 5 . . . . Scanalyzers . | . . . . . . Garrison Access . | . . . . . . Terminal Hacks 6 | . 3 . 2 . 1 Record 1 | . . . 1 . . Robot Analysis 1 | . . . . . 1 Prototype ID Bank 3 | . 3 . . . . EX-Prototype ID Bank 1 | . . . 1 . . Fabricator Hacks . | . . . . . . Repair Station Hacks . | . . . . . . Recycling Unit Hacks 1 | . 1 . . . . Retrieve Components 1 | . 1 . . . . Scanalyzer . | . . . . . . Garrison Access Hacks . | . . . . . . Unauthorized Hacks 6 | . 6 . . . . Terminals 3 | . 3 . . . . Botnet 2 | . 2 . . . . Operators 1 | . 1 . . . . Fabricators . | . . . . . . Repair Stations . | . . . . . . Recycling Units 3 | . 3 . . . . Reject 2 | . 2 . . . . Tunnel 1 | . 1 . . . . Scanalyzers . | . . . . . . Garrison Access . | . . . . . . Data Cores Recovered . | . . . . . . Used . | . . . . . . Hacking Detections 5 | . 4 . . . 1 Full Trace Events 2 | . 2 . . . . Feedback Events . | . . . . . . Feedback Blocked . | . . . . . . Robot Schematics Acquired . | . . . . . . Robots Built . | . . . . . . Authchips . | . . . . . . Time . | . . . . . . Total Robot Build Rating . | . . . . . . Part Schematics Acquired . | . . . . . . Parts Built . | . . . . . . Authchips . | . . . . . . Time . | . . . . . . Total Part Build Rating . | . . . . . . Parts Repaired . | . . . . . . Time . | . . . . . . Parts Recycled . | . . . . . . Recycled Matter . | . . . . . . Retrieved Matter . | . . . . . . Retrieved Components . | . . . . . . Parts Scanalyzed . | . . . . . . Part Schematics Acquired . | . . . . . . Parts Damaged . | . . . . . . Bothacking | -11 -10 -10 -10 -9 -8 ------------ Run | Scr Mat Min Exi Min Mat Used RIF Installer . | . . . . . . Robots Hacked . | . . . . . . Non-combat . | . . . . . . Combat . | . . . . . . Robot Hacks Applied . | . . . . . . Relay Couplers Released . | . . . . . . Fabnet Peak Effective % . | . . . . . . Robots Rewired . | . . . . . . Allies Hacked . | . . . . . . Hacks Repelled . | . . . . . . Allies | -11 -10 -10 -10 -9 -8 -------- Run | Scr Mat Min Exi Min Mat Total Allies 5 | . . 2 . 3 . Largest Group 3 | . . 2 2 3 2 Highest-Rated Group 42 | . . 42 42 40 32 Highest-Rated Ally 31 | . . 31 31 16 16 Total Orders 1 | . . . . . 1 STAY 1 | . . . . . 1 Ally Attacks 19 | . . 1 . 7 11 Total Damage 166 | . . 22 . 64 80 Kills 1 | . . 1 . . . Allies Corrupted . | . . . . . . Allies Melted . | . . . . . . Intel | -11 -10 -10 -10 -9 -8 ------- Run | Scr Mat Min Exi Min Mat Robot Analysis Total 1 | . . . . . 1 Derelict Logs Recovered 2 | . . 1 . 1 . Drone Launches . | . . . . . . Drone Recoveries . | . . . . . . Exploration | -11 -10 -10 -10 -9 -8 ------------- Run | Scr Mat Min Exi Min Mat Turns Passed 2401 | 70 605 761 515 302 148 Spaces Moved 2051 | 36 502 674 492 253 94 Core 19 | 19 . . . . . Treads . | . . . . . . Legs 213 | 17 196 . . . . Wheels 1819 | . 306 674 492 253 94 Hover . | . . . . . . Flight . | . . . . . . Fastest Speed 50 | 50 80 80 95 95 101 Average Speed 101 | 158 100 94 104 108 101 Slowest Speed 250 | 250 120 95 110 110 101 Overloaded Moves . | . . . . . . Propulsion Burnouts . | . . . . . . Robots Hopped . | . . . . . . Cave-ins Triggered . | . . . . . . Exploration Rate (%) 55 | 4 67 99 87 64 9 Regions Visited 5 Branch Regions 3 Pre-discovered Areas 3 | . 1 . 1 1 . Known Exits Taken . | . . . . . . Unknown Exits Taken 5 | 1 1 1 1 1 . Scrap Searched 3 | . . 1 . 2 . Spaces Dug 3 | . . . . . 3 Terrain Destroyed 36 | . . . . 12 24 Melee . | . . . . . . Projectile 4 | . . . . . 4 AOE 32 | . . . . 12 20 Terrain Rammed . | . . . . . . Walls Destroyed . | . . . . . . Machines Disabled . | . . . . . . Actions | -11 -10 -10 -10 -9 -8 --------- Run | Scr Mat Min Exi Min Mat Total 2296 | 46 580 777 494 275 124 Wait 152 | . 49 80 . 15 8 Move 2046 | 35 501 673 491 252 94 Hop . | . . . . . . Pick Up 26 | 5 9 4 2 2 4 Fast Attach 9 | 6 1 2 . . . Attach 7 | . 3 . . . 4 Detach . | . . . . . . Swap 12 | . 2 1 1 3 5 Drop 13 | . 4 7 . 1 1 Fire 31 | . 11 10 . 2 8 Melee . | . . . . . . Ram . | . . . . . . Kick . | . . . . . . Crush . | . . . . . . Escape Stasis . | . . . . . . Rewire . | . . . . . . Trap . | . . . . . . Miscellaneous . | . . . . . . Route ------- -11/Scrapyard -10/Materials (discovered 3 exits: [*Mat x2] / [*Min]) -10/Mines (discovered 3 exits: [*Mat x2] / *Exi) -10/Exiles -9/Mines (discovered 2 exits: *Mat x2) -8/Materials History --------- Turn | Location | Event 16 | -11/Scrapyard | Discovered new exit (range 16) 71 | -11/Scrapyard | Entered Materials 177 | -10/Materials | Met 8R-AWN 186 | -10/Materials | Discovered new exit (range 7) 302 | -10/Materials | Build established: Mutant 307 | -10/Materials | Discovered new exit (range 11) 405 | -10/Materials | Discovered new exit (range 10) 676 | -10/Materials | Entered Mines 677 | -10/Mines | Followed 8R-AWN into the Mines 699 | -10/Mines | Met a Derelict bent on vengeance 774 | -10/Mines | Discovered new exit (range 8) 806 | -10/Mines | Discovered new exit (range 5) 1277 | -10/Mines | Discovered new exit (range 10) 1282 | -10/Mines | Joined a pair of Derelicts in attacking an 0b10 outpost 1285 | -10/Mines | Learned Materials terminal intel 1437 | -10/Mines | Entered Exiles 1437 | -10/Exiles | Accompanied by 2 allies 1461 | -10/Exiles | Welcomed by 8R-AWN 1467 | -10/Exiles | Led the pair of lost Derelicts to a safe place 1475 | -10/Exiles | Met EX-HEX 1504 | -10/Exiles | Met EX-BIN 1552 | -10/Exiles | Learned location of Zion (-6) 1592 | -10/Exiles | Aligned with FarCom system 1593 | -10/Exiles | Given EX-Vault access code 1616 | -10/Exiles | Opened EX-Vault 1625 | -10/Exiles | Found AWS/Gauss 1649 | -10/Exiles | Warned to stay clear of 0b10 Research branches 1678 | -10/Exiles | Met EX-DEC 1750 | -10/Exiles | Visited The Gauntlet 1939 | -10/Exiles | Discovered new exit (range 14) 1952 | -10/Exiles | Left Exiles lab with AWS/Gauss 1952 | -10/Exiles | Entered Mines 2059 | -9/Mines | Received a Rocket Launcher from a helpful Derelict 2231 | -9/Mines | Discovered new exit (range 9) 2231 | -9/Mines | Discovered new exit (range 7) 2244 | -9/Mines | Assisted by bots powering up and referring to "LRC-V3" 2254 | -9/Mines | Entered Materials 2254 | -8/Materials | Accompanied by 2 allies 2254 | -8/Materials | Evolved 4 slots: Propulsion x1, Utility x2, Weapon x1 2255 | -8/Materials | Loaded intel: 12 terminal locations 2402 | -8/Materials | Self-destructed Last Messages --------------- 02382_ Slug penetrates R-06 Scavenger. 02382_ R-06 Scavenger destroyed. 02385_ Slug penetrates Trooper 2a. 02385_ Acquired 40 matter. 02388_ Slug penetrates Wall. 02390_ Acquired 10 matter. 02390_ R-06 Scavenger collects Sml. Storage Unit. 02391_ Slug penetrates Trooper 2a. 02391_ U-05 Engineer destroyed. 02392_ Trooper 2a destroyed. 02393_ R-06 Scavenger collects Structural Scanner. 02396_ R-06 Scavenger collects Wheel. 02398_ G-47 Trooper destroyed. 02398_ Destroyed Welding Torch. 02398_ U-05 Engineer destroyed. 02398_ G-47 Trooper destroyed. 02399_ R-06 Scavenger collects Welding Torch. 02399_ Slug penetrates Wall. 02401_ Destroyed Lgt. Nuclear Core. 02401_ H-55 Commando destroyed. Map ----- +----------------------------------------------------+ | ??????????????????????? ??????????????????????? | | ????????????????????? ??????????????????????? | | ?????????????????? !???T??????????????????? | | ???????????????? !??????????????????????? | | ??????????????"" ??????????????????????? | | ?????????????? ??????????????????????? | | ?????????????? [ ??????????????????????? | | ???????????????" ????????????????????? | | ????????????????? ????????????????????? | | ?????????????????? """????????????????????? | | ??????????????????? ?????????????????????? | | ???????????????????? ????????????????????? | | ????????????????????? =! [%????????????????????? | | ?????????????????????# % ????????????????????? | | ?????????????????##### g % ;;#####???????????????? | | ??????????????????"T" =%= #???????????????? | | ??????????????????? #???????????????? | | ???????????????????! """ #???????????????? | | ??????????????Y????? """ #???????????????? | | ?????????????????????[ """ #???????????????? | | ???????????????####### #???????????????? | | ???????????????# #######???????????????? | | ???????????????# ^ ??????????????????????? | | ???????????????# """ "%=#??????????????????????? | | ???????????????# """ T! #??????????????????????? | | ???????????????# ^"""^ " @##?????????????????????? | | ???????????????# """ %%########???????????????? | | ???????????????# r !# #???????????????? | | ???????????????# # #???????????????? | | ???????????????# #! #???????????????? | | ???????????????# = # #???????????????? | | ???????????????######## + ! #???????????????? | | ??????????????????????# # #???????????????? | | ??????????????????????# #"######???????????????? | | ??????????????????????# a#################??????? | | ???????????????######## g ???? | | ???????????????# % ! # ???? | | ????"T"????????# # g ##############?????????? | | ????"""????????# """ + #??????????????????????? | | ???????????????# """ # #??????????????????????? | | ???????????????# """ # ! #??????????????????????? | | ???????????????# # #??????????????????????? | | ???????????????############??????????????????????? | | ?????????????????????????????????????????????????? | | ?????????????????????????????????????????????????? | | ?????????????????????????????????????????????????? | | ?????????????????????????????????????????????????? | | ?????????????????????????????????????????????????? | | ?????????????????????????????????????????????????? | | ?????????????????????????????????????????????????? | +----------------------------------------------------+ Best States ------------- Heat Dissipation 45 Energy Generation 12 Energy Capacity 265 Matter Stores 300 Matter Capacity 300 Sight Range 16 Terrain Scan Density 10 Armor Coverage 150 Evasion (%) 55 Targeting Accuracy 5 Item Schematics ----------------- None Robot Schematics ------------------ None Fabricated ------------ Nothing Alien Tech Used ----------------- None Achievements -------------- None Challenges ------------ None Game ------ Seed ElectronSiegeShotgun Manual? 0 Play Time 00:20:34 Cumulative 169.4 hours Start 2022.03.20 @ 23:14:02 End 2022.03.20 @ 23:32:42 Sessions 1 Manual Loads 0 Difficulty Rogue Special Mode None Game No. 163 Rogue 163 Adventurer 0 Explorer 0 Win Type - Total 0 Types 0/0/0/0/0/0/0/0/0 Lore% 39 Gallery% 46 Achievement% 35 Wizard Run 0 Options --------- ASCII 0 Keyboard 0 Movement Mouse Keybinds 0 Fullscreen 1 Font 16/SmallcapsGlow Map View 75x55 Tactical HUD 1 Map Filters NONE Filters NONE Steam 1 RUN: 6fb9be01-ae31-4f2a-a938-171d4c72affa